bitfinex/quotes_SOLUSD_20220128
["timestamp","ask_amount","ask_price","bid_price","bid_amount"]
[1643404781690,16.155,92.94,92.892,1.4329784]
[1643404782090,16.155,92.94,92.893,1.4329784]
[1643404782293,16.155,92.94,92.894,1.4329784]
[1643404782690,16.155,92.94,92.893,1.4329784]
[1643404783092,16.155,92.94,92.89,1.4329784]
[1643404783692,16.155,92.94,92.891,1.4329784]
[1643404784133,53.834,92.99,92.9,1.4329784]
[1643404784330,15.51,93.02,92.926,1.4329784]
[1643404784529,15.51,93.02,92.926,10.6929784]
[1643404784730,47.135,93.028,92.946,1.4329784]
[1643404784929,41.50516605,93.027,92.946,1.4329784]
[1643404785129,41.50516605,93.027,92.949,1.4329784]
[1643404785429,16.141,93.02,92.94,1.4329784]
[1643404785828,16.141,93.02,92.937,1.4329784]
[1643404786030,2.95669142,93.019,92.933,1.4329784]
[1643404786431,2.95669142,93.019,92.928,1.4329784]
[1643404786734,43.88999594,93.008,92.929,1.4329784]
[1643404786931,43.88999594,93.008,92.928,1.4329784]
[1643404787133,16.146,93.0,92.929,1.4329784]
[1643404787331,16.146,93.0,92.938,1.4329784]
[1643404787531,16.146,93.0,92.939,1.4329784]
[1643404787933,16.146,93.0,92.937,1.4329784]
[1643404788536,16.146,93.0,92.936,1.4329784]
[1643404788733,16.146,93.0,92.937,1.4329784]
[1643404789133,16.146,93.0,92.936,1.4329784]
[1643404789337,16.146,93.0,92.934,1.4329784]
[1643404789738,16.146,93.0,92.935,1.4329784]
[1643404789935,16.146,93.0,92.912,3.68502538]
[1643404789936,16.146,93.0,92.938,1.4329784]
[1643404790537,16.146,93.0,92.939,1.4329784]
[1643404791538,16.146,93.0,92.942,1.4329784]
[1643404791735,16.146,93.0,92.94,1.4329784]
[1643404791944,16.146,93.0,92.939,1.4329784]
[1643404792138,16.146,93.0,92.938,1.4329784]
[1643404792542,16.146,93.0,92.937,1.4329784]
[1643404792739,32.59269142,93.0,92.926,1.4329784]
[1643404792937,6.0,92.99,92.923,1.4329784]
[1643404793137,16.15,92.97,92.919,1.4329784]
[1643404793436,16.15,92.97,92.918,1.4329784]
[1643404793637,16.15,92.97,92.917,1.4329784]
[1643404794039,16.15,92.97,92.912,1.4329784]
[1643404794238,16.15,92.97,92.911,1.4329784]
[1643404794442,16.15,92.97,92.912,1.4329784]
[1643404794639,16.15,92.97,92.91,1.4329784]
[1643404795140,16.15,92.97,92.913,1.4329784]
[1643404795839,16.15,92.97,92.918,1.4329784]
[1643404796040,16.15,92.97,92.915,1.4329784]
[1643404796640,48.43960815,92.989,92.916,1.4329784]
[1643404797044,48.43960815,92.989,92.917,1.4329784]
[1643404797239,48.43960815,92.989,92.918,1.4329784]
[1643404797442,48.43960815,92.989,92.921,1.4329784]
[1643404797640,48.43960815,92.989,92.922,1.4329784]
[1643404797843,48.43960815,92.989,92.92,1.4329784]
[1643404798042,16.148,92.98,92.92,1.4329784]
[1643404798742,23.3307,93.009,92.921,1.4329784]
[1643404798941,23.3307,93.009,92.923,1.4329784]
[1643404799145,16.145,93.0,92.928,1.4329784]
[1643404799545,44.32748286,93.005,92.931,1.4329784]
[1643404799742,44.32748286,93.005,92.933,1.4329784]
[1643404799946,2.95669142,93.041,92.932,1.6829784]
[1643404800143,15.51,93.05,92.933,11.02]
[1643404800343,53.803,93.04,92.934,1.6829784]
[1643404800545,24.6187,93.061,92.937,1.4329784]
[1643404800744,15.51,93.06,92.937,1.4329784]
[1643404800943,62.73004853,93.059,92.941,1.4329784]
[1643404801144,65.68673995,93.059,92.942,1.4329784]
[1643404801344,16.14,93.03,92.943,1.4329784]
[1643404801543,37.34834901,93.029,92.941,1.4329784]
[1643404802349,6.0,93.019,92.942,0.25]
[1643404802544,6.0,93.019,92.941,1.4329784]
[1643404802759,6.0,93.019,92.942,1.4329784]
[1643404802947,6.0,93.019,92.934,1.4329784]
[1643404803142,2.95669142,93.018,92.934,1.4329784]
[1643404803543,2.95669142,93.018,92.927,1.4329784]
[1643404803941,2.95669142,93.018,92.916,1.4329784]
[1643404804142,35.39839135,93.009,92.915,1.4329784]
[1643404804541,2.95669142,93.008,92.913,1.4329784]
[1643404805041,2.95669142,93.008,92.914,1.4329784]
[1643404805243,16.148,92.99,92.915,1.4329784]
[1643404805443,45.59332992,92.989,92.904,1.4329784]
[1643404805844,45.59332992,92.989,92.906,1.4329784]
[1643404806045,6.0,92.979,92.906,1.4329784]
[1643404806647,6.0,92.979,92.904,1.4329784]
[1643404806846,16.15,92.97,92.903,1.4329784]
[1643404807047,47.33524906,92.969,92.902,1.4329784]
[1643404807847,47.33524906,92.969,92.903,1.4329784]
[1643404808049,16.151,92.96,92.9,15.8489]
[1643404810654,31.17150834,92.949,92.9,0.0089]
[1643404810855,31.17150834,92.949,92.877,1.4329784]
[1643404811053,53.866,92.94,92.876,39.94928503]
[1643404811255,69.376,92.94,92.875,15.8956]
[1643404811459,2.95669142,92.939,92.875,15.8956]
[1643404812053,16.16,92.93,92.875,15.8956]
[1643404812254,2.087218,92.929,92.875,15.8956]
[1643404812653,2.95669142,92.928,92.875,15.8956]
[1643404814057,16.163,92.92,92.875,15.8956]
[1643404814461,19.11969142,92.92,92.875,15.8956]
[1643404815457,16.163,92.92,92.875,15.8956]
[1643404815858,2.95669142,92.919,92.875,15.8956]
[1643404816065,16.161,92.91,92.875,15.8956]
[1643404816459,2.95669142,92.909,92.875,15.8956]
[1643404816663,16.161,92.91,92.875,15.8956]
[1643404816860,27.68290178,92.909,92.875,15.8956]
[1643404817061,6.0,92.9,92.875,15.8956]
[1643404817260,22.162,92.9,92.875,15.8956]
[1643404818492,16.162,92.9,92.875,15.8956]
[1643404819896,16.162,92.9,92.875,8.20609331]
[1643404820100,2.95669142,92.899,92.875,0.47382211]
[1643404820296,53.889,92.89,92.817,16.2634]
[1643404820499,6.0,92.88,92.817,16.2634]
[1643404820699,16.173,92.86,92.791,1.4329784]
[1643404820896,16.173,92.86,92.774,113.7]
[1643404820897,2.4307664,92.859,92.781,1.4329784]
[1643404821097,2.4307664,92.859,92.779,1.4329784]
[1643404821296,25.18209703,92.859,92.778,1.4329784]
[1643404821698,2.95669142,92.858,92.779,1.4329784]
[1643404821897,2.95669142,92.858,92.78,39.97756448]
[1643404822106,16.175,92.85,92.78,39.97756448]
[1643404822299,16.175,92.85,92.78,38.54458608]
[1643404823899,2.95669142,92.849,92.78,38.54458608]
[1643404824100,16.177,92.84,92.78,38.54458608]
[1643404825905,2.95669142,92.839,92.76,1.4329784]
[1643404826110,53.928,92.83,92.759,1.4329784]
[1643404826312,53.928,92.83,92.753,1.4329784]
[1643404826514,22.178,92.82,92.753,1.4329784]
[1643404826718,22.178,92.82,92.749,1.4329784]
[1643404827013,15.51,92.85,92.776,113.7]
[1643404827515,6.0,92.839,92.776,113.7]
[1643404827720,15.51,92.85,92.776,113.7]
[1643404827918,15.51,92.86,92.776,113.7]
[1643404828115,53.902,92.87,92.777,46.58884285]
[1643404828316,53.902,92.87,92.778,107.9]
[1643404828716,53.902,92.87,92.777,46.58884285]
[1643404828955,16.169,92.86,92.777,46.58884285]
[1643404830054,16.165,92.88,92.778,107.9]
[1643404830261,46.97,92.933,92.796,1.4329784]
[1643404830458,15.51,92.94,92.805,2.95669142]
[1643404830655,13.02973786,92.949,92.81,15.51]
[1643404830853,13.02973786,92.949,92.815,6.0]
[1643404831056,13.02973786,92.949,92.821,47.19203825]
[1643404831255,13.02973786,92.949,92.844,113.7]
[1643404831453,13.02973786,92.949,92.845,45.40103746]
[1643404831655,13.02973786,92.949,92.854,6.0]
[1643404831855,16.156,92.94,92.855,6.0]
[1643404832155,1.47429584,93.015,92.855,6.0]
[1643404832354,15.51,92.98,92.856,0.25]
[1643404832556,15.51,92.99,92.856,15.8]
[1643404832757,2.95669142,92.997,92.856,18.75669142]
[1643404832953,16.149,92.98,92.86,22.152]
[1643404833153,5.27465308,92.979,92.861,157.02893913]
[1643404833365,5.27465308,92.979,92.867,6.0]
[1643404833557,16.149,92.98,92.871,6.0]
[1643404833758,16.149,92.98,92.872,0.25]
[1643404833957,16.149,92.98,92.872,6.25]
[1643404834157,16.149,92.98,92.872,0.25]
[1643404834556,16.151,92.97,92.872,0.25]
[1643404836560,16.151,92.97,92.876,6.0]
[1643404836764,16.151,92.97,92.872,108.15]
[1643404837060,16.151,92.97,92.882,6.0]
[1643404837863,16.151,92.97,92.883,0.25]
[1643404838062,16.151,92.97,92.888,6.0]
[1643404838259,15.651,92.97,92.888,6.0]
[1643404839960,15.651,92.97,92.884,107.9]
[1643404840189,15.651,92.97,92.885,0.25]
[1643404840565,2.95669142,92.969,92.878,42.58608741]
[1643404840764,16.154,92.95,92.878,42.58608741]
[1643404840966,2.31519329,92.949,92.878,42.58608741]
[1643404841170,6.0,92.94,92.878,42.58608741]
[1643404841865,2.95669142,92.939,92.878,42.58608741]
[1643404842967,16.157,92.93,92.878,42.58608741]
[1643404843169,16.157,92.93,92.844,113.7]
[1643404843369,2.95669142,92.929,92.842,1.4329784]
[1643404843565,12.93,92.92,92.829,1.4329784]
[1643404843765,12.93,92.92,92.824,1.4329784]
[1643404843975,2.95669142,92.919,92.822,1.4329784]
[1643404844165,2.99819892,92.918,92.814,38.84312388]
[1643404844565,2.95669142,92.917,92.814,38.84312388]
[1643404844763,6.0,92.908,92.814,38.84312388]
[1643404844965,16.166,92.9,92.814,38.84312388]
[1643404845165,14.83874953,92.899,92.814,38.84312388]
[1643404846366,16.165,92.88,92.814,38.84312388]
[1643404846567,2.99819892,92.879,92.814,38.84312388]
[1643404846769,5.95489034,92.879,92.814,38.84312388]
[1643404847370,2.95669142,92.879,92.814,38.84312388]
[1643404847570,16.168,92.87,92.814,38.84312388]
[1643404848272,12.93,92.89,92.814,38.84312388]
[1643404848669,16.164,92.89,92.814,38.84312388]
[1643404849973,6.0,92.908,92.814,38.84312388]
[1643404850174,2.95669142,92.889,92.805,1.4329784]
[1643404850376,12.93,92.88,92.804,0.0425871]
[1643404850773,2.95669142,92.879,92.804,0.0425871]
[1643404850973,16.172,92.87,92.804,0.0425871]
[1643404852077,16.172,92.85,92.804,0.0425871]
[1643404852878,53.904,92.88,92.804,0.0425871]
[1643404853081,6.0,92.87,92.808,113.7]
[1643404853476,6.0,92.87,92.809,48.32451721]
[1643404853877,22.168,92.87,92.809,48.32451721]
[1643404855401,2.95669142,92.869,92.809,48.32451721]
[1643404855607,16.17,92.86,92.809,48.32451721]
[1643404856003,3.29307251,92.859,92.809,48.32451721]
[1643404856204,16.17,92.86,92.809,48.32451721]
[1643404856406,2.95669142,92.869,92.809,48.32451721]
[1643404856604,16.174,92.85,92.809,48.32451721]
[1643404857205,15.174,92.85,92.809,48.32451721]
[1643404858209,16.167,92.87,92.809,48.32451721]
[1643404858609,6.0,92.86,92.809,48.32451721]
[1643404858807,53.895,92.88,92.809,48.32451721]
[1643404859007,6.0,92.87,92.809,48.32451721]
[1643404860109,22.168,92.87,92.809,48.32451721]
[1643404866127,12.93,92.89,92.809,10.82]
[1643404866328,1.47429584,92.938,92.81,0.25]
[1643404866583,46.2902,92.965,92.82,109.3329784]
[1643404866584,16.153,92.96,92.82,109.3329784]
[1643404866762,16.153,92.96,92.837,1.4329784]
[1643404866962,16.153,92.96,92.841,1.4329784]
[1643404867161,40.17946536,92.959,92.847,6.0]
[1643404867361,40.17946536,92.959,92.848,0.25]
[1643404867561,40.17946536,92.959,92.854,6.0]
[1643404867763,40.17946536,92.959,92.855,0.25]
[1643404867959,40.17946536,92.959,92.861,2.06737838]
[1643404868365,40.17946536,92.959,92.862,0.25]
[1643404868965,16.154,92.95,92.862,0.25]
[1643404869367,96.623,92.979,92.87,16.149]
[1643404869568,1.47429584,92.987,92.88,6.0]
[1643404869766,1.47429584,92.998,92.89,12.93]
[1643404869965,1.47429584,93.0,92.89,25.71]
[1643404870165,1.47429584,93.004,92.901,121.78445285]
[1643404870365,16.144,93.01,92.901,121.78445285]
[1643404870366,16.144,93.01,92.902,0.25]
[1643404870669,1.47429584,93.017,92.911,6.0]
[1643404870872,1.47429584,93.017,92.912,0.25]
[1643404871067,1.47429584,93.031,92.92,6.0]
[1643404871269,1.47429584,93.031,92.93,12.93]
[1643404871467,1.47429584,93.035,92.93,26.67]
[1643404871669,1.47429584,93.05,92.95,16.136]
[1643404871866,71.31530338,93.062,92.951,13.47672411]
[1643404872066,1.47429584,93.063,92.961,6.0]
[1643404872268,1.47429584,93.066,92.962,0.25]
[1643404872469,29.062,93.08,92.962,0.25]
[1643404872667,16.132,93.08,92.962,0.25]
[1643404872868,46.15818036,93.079,92.962,0.25]
[1643404873268,46.15818036,93.079,92.97,16.131]
[1643404873471,46.15818036,93.079,92.971,4.9783033]
[1643404873670,16.133,93.07,92.971,4.9783033]
[1643404874071,2.95669142,93.069,92.971,4.9783033]
[1643404874273,53.8,93.05,92.971,4.9783033]
[1643404874474,42.13552085,93.049,92.971,4.9783033]
[1643404874671,45.09221227,93.049,92.971,4.9783033]
[1643404874874,16.14,93.04,92.971,4.9783033]
[1643404875271,2.95669142,93.039,92.971,4.9783033]
[1643404876472,16.141,93.02,92.971,4.9783033]
[1643404877072,16.141,93.02,92.931,24.3247]
[1643404877271,2.95669142,93.019,92.931,24.3247]
[1643404877472,2.95669142,93.019,92.941,6.0]
[1643404877704,2.95669142,93.019,92.932,0.25]
[1643404878101,16.141,93.02,92.932,0.25]
[1643404878500,16.141,93.02,92.931,6.0]
[1643404878706,19.09769142,93.02,92.931,6.0]
[1643404879601,1.47429584,93.077,92.931,6.0]
[1643404879602,2.95669142,93.033,92.94,16.137]
[1643404879804,2.95669142,93.033,92.941,0.25]
[1643404880001,2.95669142,93.081,92.95,6.0]
[1643404880304,2.95669142,93.081,92.951,0.25]
[1643404880504,65.48259282,93.08,92.952,6.0]
[1643404880702,78.41259282,93.08,92.952,6.0]
[1643404880901,2.95669142,93.079,92.961,6.0]
[1643404881101,16.136,93.05,92.961,6.0]
[1643404881308,38.28202964,93.049,92.961,6.0]
[1643404881501,38.28202964,93.049,92.953,0.25]
[1643404881900,2.95669142,93.048,92.953,0.25]
[1643404882102,38.28202964,93.049,92.921,21.57999018]
[1643404882103,16.138,93.04,92.921,21.57999018]
[1643404882301,12.93,93.03,92.877,48.6078]
[1643404882501,124.3959,93.029,92.877,48.6078]
[1643404882700,124.3959,93.029,92.89,12.93]
[1643404883101,40.00966924,93.028,92.891,16.45500864]
[1643404883304,40.00966924,93.028,92.9,16.143]
[1643404883701,40.00966924,93.028,92.901,2.95669142]
[1643404884101,40.00966924,93.028,92.901,110.85669142]
[1643404884400,16.142,93.02,92.91,16.142]
[1643404884602,16.142,93.02,92.911,1.75001877]
[1643404884801,2.95669142,93.019,92.911,109.90001877]
[1643404885204,0.1,93.339,92.911,109.90001877]
[1643404885409,1.47711924,93.093,92.912,46.5244]
[1643404885605,2.95669142,93.031,92.912,46.7744]
[1643404885804,12.93,93.03,92.912,46.5244]
[1643404886207,12.93,93.03,92.913,0.25]
[1643404887210,12.93,93.03,92.913,3.20669142]
[1643404888009,29.072,93.03,92.913,3.20669142]
[1643404888510,0.1,93.339,92.914,70.0]
[1643404888712,10.0,93.21,92.92,16.141]
[1643404888912,10.0,93.21,92.942,0.31442366]
[1643404889109,21.24410976,93.209,92.942,0.31442366]
[1643404889309,15.14653456,93.208,92.943,72.30662271]
[1643404889508,38.25447389,93.208,92.953,6.0]
[1643404889709,142.62171588,93.207,92.954,49.0465]
[1643404889914,147.44230512,93.207,92.954,49.2965]
[1643404890112,107.9,93.205,92.971,38.42369069]
[1643404890311,107.9,93.203,92.972,24.3579]
[1643404890511,6.68441881,93.202,92.972,24.3579]
[1643404890710,107.9,93.201,92.973,0.25]
[1643404890911,341.17467655,93.201,92.973,0.25]
[1643404891110,355.63797913,93.201,92.972,24.3579]
[1643404891313,329.5609,93.201,92.98,12.93]
[1643404891914,329.5609,93.201,92.972,24.3579]
[1643404892515,339.5209,93.201,92.972,24.3579]
[1643404893517,329.5609,93.201,92.972,24.3579]
[1643404893715,338.13061179,93.201,92.972,24.3579]
[1643404894119,329.5609,93.201,92.972,24.3579]
[1643404898325,329.5609,93.201,92.98,12.93]
[1643404898521,334.70248663,93.201,92.98,12.93]
[1643404898922,329.5609,93.201,92.972,24.3579]
[1643404900124,334.70248663,93.201,92.972,24.3579]
[1643404900522,329.5609,93.201,92.972,24.3579]
[1643404900922,329.5609,93.201,92.972,57.50316067]
[1643404901122,329.5609,93.201,92.972,24.3579]
[1643404901422,329.5609,93.201,92.98,12.93]
[1643404904140,329.5609,93.201,92.972,24.3579]
[1643404904327,329.5609,93.201,92.98,15.5]
[1643404905327,329.5609,93.201,92.972,24.3579]
[1643404905528,329.5609,93.201,92.98,193.74]
[1643404905930,329.5609,93.201,92.981,53.41794074]
[1643404906633,329.5609,93.201,92.99,193.74]
[1643404906831,329.5609,93.201,92.992,46.45097153]
[1643404907833,329.5609,93.201,93.0,15.5]
[1643404908037,329.5609,93.201,93.0,193.74]
[1643404909236,330.43816816,93.201,93.0,193.74]
[1643404909837,329.5609,93.201,93.0,193.74]
[1643404910435,329.5609,93.201,92.992,46.45097153]
[1643404910636,329.5609,93.201,93.0,209.24]
[1643404911671,329.5609,93.201,93.0,193.74]
[1643404913773,329.5609,93.201,92.992,46.45097153]
[1643404913971,329.5609,93.201,93.011,48.09805434]
[1643404914171,221.6609,93.201,93.02,15.5]
[1643404914374,221.6609,93.201,93.02,209.24]
[1643404914773,329.5609,93.201,93.02,209.24]
[1643404919874,329.5609,93.201,93.011,48.09805434]
[1643404920076,329.5609,93.201,93.02,15.5]
[1643404922380,334.20940452,93.201,93.02,15.5]
[1643404922678,329.5609,93.201,93.02,15.5]
[1643404924782,338.13061179,93.201,93.02,15.5]
[1643404925178,329.5609,93.201,93.02,15.5]
[1643404925379,329.5609,93.201,93.02,209.24]
[1643404926879,329.5609,93.201,93.021,22.8503]
[1643404928083,329.5609,93.201,93.022,23.199]
[1643404931892,338.13061179,93.201,93.022,23.199]
[1643404932190,221.6609,93.201,93.03,193.74]
[1643404932392,221.6609,93.201,93.041,38.9221177]
[1643404932393,329.5609,93.201,93.041,38.9221177]
[1643404932590,329.5609,93.201,93.042,24.7361]
[1643404932790,221.6609,93.201,93.042,24.7361]
[1643404933793,221.6609,93.201,93.043,24.4796]
[1643404934395,76.6609,93.201,93.05,193.74]
[1643404934597,76.6609,93.201,93.06,209.24]
[1643404934795,76.6609,93.201,93.071,47.12475792]
[1643404934997,76.6609,93.201,93.072,47.1986]
[1643404936798,3.9113,93.201,93.072,47.1986]
[1643404936995,16.3025,93.203,93.072,56.9486]
[1643404938030,16.3025,93.203,93.072,47.1986]
[1643404939331,16.3025,93.203,93.08,193.74]
[1643404939531,16.3025,93.203,93.091,43.7978288]
[1643404939740,16.3025,93.203,93.092,23.1768]
[1643404939938,81.32073778,93.235,93.092,23.1768]
[1643404940150,81.32073778,93.235,93.11,193.74]
[1643404940333,81.32073778,93.235,93.12,15.5]
[1643404940334,2.95669142,93.203,93.12,15.5]
[1643404940741,2.95669142,93.203,93.121,41.80136222]
[1643404941139,2.95669142,93.203,93.121,89.50416222]
[1643404942536,2.95669142,93.234,93.121,89.50416222]
[1643404942738,2.95669142,93.223,93.121,89.50416222]
[1643404943336,16.20918753,93.222,93.121,89.50416222]
[1643404943742,2.95669142,93.222,93.121,89.50416222]
[1643404943939,2.95669142,93.242,93.121,89.50416222]
[1643404944138,18.85949142,93.242,93.121,102.91416222]
[1643404944339,2.95669142,93.234,93.121,102.91416222]
[1643404944739,14.57767768,93.233,93.121,102.91416222]
[1643404945941,2.95669142,93.232,93.121,89.50416222]
[1643404946544,2.95669142,93.252,93.14,193.74]
[1643404946746,182.3053,93.307,93.15,209.24]
[1643404947646,14.74919395,93.281,93.151,59.10813485]
[1643404948045,14.74919395,93.281,93.152,24.9102]
[1643404948648,4.44409782,93.279,93.153,24.5053]
[1643404949682,19.19329177,93.281,93.153,24.5053]
[1643404950884,14.74919395,93.281,93.153,24.5053]
[1643404951885,14.19489456,93.28,93.153,24.5053]
[1643404954092,2.95669142,93.279,93.153,24.5053]
[1643404954487,14.19489456,93.278,93.153,24.5053]
[1643404954889,2.95669142,93.277,93.153,24.5053]
[1643404957895,17.15158598,93.277,93.153,24.5053]
[1643404958093,2.95669142,93.277,93.153,24.5053]
[1643404958292,17.15158598,93.276,93.153,24.5053]
[1643404958695,2.95669142,93.276,93.153,24.5053]
[1643404958991,2.95669142,93.275,93.153,24.5053]
[1643404960296,14.74919395,93.281,93.16,193.74]
[1643404960495,14.74919395,93.281,93.17,15.5]
[1643404960801,2.95669142,93.28,93.172,46.07962122]
[1643404960995,0.00669142,93.28,93.172,46.07962122]
[1643404961200,2.95669142,93.316,93.2,193.74]
[1643404961398,4.44409782,93.332,93.21,209.24]
[1643404961596,0.1,93.341,93.23,193.74]
[1643404961797,0.1,93.34,93.24,15.5]
[1643404961998,16.79662017,93.315,93.241,39.53891644]
[1643404967307,28.01230696,93.314,93.241,39.53891644]
[1643404967506,28.01230696,93.314,93.24,15.5]
[1643404967730,30.96899838,93.314,93.24,15.5]
[1643404967932,2.95669142,93.313,93.24,15.5]
[1643404968531,2.95669142,93.313,93.241,40.53826216]
[1643404968938,110.85669142,93.313,93.23,15.5]
[1643404969137,110.85669142,93.313,93.12,16.104]
[1643404969138,110.85669142,93.313,93.16,193.74]
[1643404969435,19.09034713,93.312,93.17,15.5]
[1643404969732,16.13365571,93.311,93.17,15.5]
[1643404969932,47.1802,93.31,93.174,35.29753255]
[1643404970233,16.13365571,93.309,93.174,35.29753255]
[1643404970432,19.09034713,93.309,93.174,35.29753255]
[1643404970634,2.95669142,93.308,93.174,35.29753255]
[1643404971134,16.13365571,93.307,93.174,35.29753255]
[1643404971536,2.95669142,93.306,93.174,35.29753255]
[1643404971934,16.13365571,93.305,93.174,35.29753255]
[1643404972237,2.95669142,93.304,93.174,35.29753255]
[1643404972635,16.13365571,93.303,93.174,35.29753255]
[1643404973035,1.72320814,93.301,93.174,35.29753255]
[1643404973436,19.09034713,93.3,93.174,35.29753255]
[1643404973839,19.09034713,93.299,93.174,35.29753255]
[1643404974136,19.09034713,93.298,93.174,35.29753255]
[1643404974336,19.09034713,93.298,93.175,47.9198]
[1643404974636,19.09034713,93.297,93.175,47.9198]
[1643404975135,19.09034713,93.296,93.175,47.9198]
[1643404975537,19.09034713,93.295,93.175,47.9198]
[1643404975937,19.09034713,93.294,93.175,47.9198]
[1643404976341,19.09034713,93.293,93.175,47.9198]
[1643404976740,19.09034713,93.292,93.175,47.9198]
[1643404977139,126.99034713,93.291,93.175,47.9198]
[1643404977339,19.09034713,93.291,93.175,47.9198]
[1643404977643,2.95669142,93.29,93.175,47.9198]
[1643404979542,19.09034713,93.29,93.175,47.9198]
[1643404979942,2.95669142,93.289,93.175,47.9198]
[1643404980542,16.13365571,93.288,93.175,47.9198]
[1643404980743,15.09653685,93.287,93.175,47.9198]
[1643404980944,18.05322827,93.287,93.175,47.9198]
[1643404981151,19.09034713,93.286,93.175,47.9198]
[1643404981546,19.09034713,93.285,93.175,47.9198]
[1643404981952,20.20205938,93.284,93.175,47.9198]
[1643404982354,19.09034713,93.283,93.175,47.9198]
[1643404982554,20.30009019,93.283,93.175,47.9198]
[1643404982749,21.41180244,93.282,93.175,47.9198]
[1643404982950,1.20974306,93.281,93.175,47.9198]
[1643404983152,18.49130601,93.281,93.175,47.9198]
[1643404983349,21.41206821,93.28,93.175,47.9198]
[1643404983550,1.21000883,93.279,93.175,47.9198]
[1643404983749,21.41206821,93.279,93.175,47.9198]
[1643404983953,20.20205938,93.278,93.175,47.9198]
[1643404984349,15.09653685,93.287,93.175,47.9198]
[1643404984350,2.95669142,93.277,93.175,47.9198]
[1643404984551,1.21006077,93.276,93.175,47.9198]
[1643404984750,18.45542873,93.276,93.175,47.9198]
[1643404984951,2.95669142,93.275,93.175,47.9198]
[1643404985152,21.41212015,93.275,93.175,47.9198]
[1643404985352,17.24536796,93.274,93.175,47.9198]
[1643404985553,3.69895451,93.273,93.175,47.9198]
[1643404985752,1.21006077,93.272,93.175,47.9198]
[1643404985954,18.45542873,93.272,93.174,35.29753255]
[1643404986153,1.21006077,93.271,93.174,35.29753255]
[1643404986354,129.31212015,93.271,93.174,35.29753255]
[1643404986564,17.24536796,93.27,93.174,35.29753255]
[1643404986853,109.11067329,93.269,93.174,35.29753255]
[1643404987054,112.06736471,93.269,93.174,35.29753255]
[1643404987253,20.20205938,93.268,93.174,35.29753255]
[1643404987456,21.41273267,93.268,93.174,35.29753255]
[1643404987655,20.20205938,93.267,93.174,35.29753255]
[1643404988055,2.95669142,93.266,93.174,35.29753255]
[1643404988255,2.95669142,93.266,93.175,46.9147]
[1643404989957,1.21177355,93.265,93.175,46.9147]
[1643404990356,2.95669142,93.264,93.175,46.9147]
[1643404990961,2.9669487,93.273,93.175,46.9147]
[1643404991159,73.70516373,93.287,93.175,59.4247]
[1643404991357,2.95669142,93.272,93.175,59.4247]
[1643404991957,2.95669142,93.272,93.255,5.1319917]
[1643404992157,6.0643,93.27,93.255,5.1319917]
[1643404992557,2.95669142,93.269,93.255,5.1319917]
[1643404992758,6.0643,93.27,93.255,5.1319917]
[1643404993058,2.95669142,93.269,93.255,5.1319917]
[1643404994960,2.95669142,93.269,93.239,45.63517778]
[1643404995763,2.95669142,93.269,93.201,22.896]
[1643404996562,1.21320175,93.268,93.201,22.896]
[1643404996763,1.21320175,93.268,93.202,37.26090863]
[1643404996966,2.95669142,93.267,93.202,37.26090863]
[1643404998165,1.21328856,93.266,93.202,37.26090863]
[1643404998663,2.45669142,93.265,93.202,37.26090863]
[1643404998863,1.21328856,93.264,93.202,37.26090863]
[1643404999266,2.95669142,93.263,93.202,37.26090863]
[1643404999468,1.21328856,93.262,93.202,37.26090863]
[1643404999865,2.95669142,93.261,93.202,37.26090863]
[1643405001891,2.9669487,93.27,93.202,37.26090863]
[1643405002093,5.92364012,93.271,93.202,37.26090863]
[1643405002296,2.95669142,93.269,93.202,37.26090863]
[1643405002493,1.2141596,93.268,93.202,37.26090863]
[1643405002691,15.82721529,93.267,93.202,37.26090863]
[1643405002893,15.82721529,93.267,93.201,22.896]
[1643405002894,1.2141596,93.266,93.201,22.896]